fUSD/lending_fUSD_20240109
["ID","MTS","AMOUNT","RATE_DAILY","PERIOD"]
[310954769,1704834643150,-156.12595149,0.000349,2]
[310954770,1704834643162,-156.12595149,0.000349,2]
[310954771,1704834643174,-156.12595149,0.000349,2]
[310954772,1704834643188,-156.12595149,0.000349,2]
[310954773,1704834643200,-100000.0,0.00035,2]
[310954774,1704834643212,-2500.0,0.00035,2]
[310954775,1704834643224,-568.0,0.00035268,2]
[310954776,1704834643236,-2899.0,0.00035304,2]
[310954777,1704834643248,-2268.0,0.00035304,2]
[310954778,1704834643259,-8081.724,0.00035304,2]
[310954779,1704834643271,-229.0,0.00035304,2]
[310954780,1704834643283,-1027.0,0.00035304,2]
[310954781,1704834643295,-205.0,0.00035437,2]
[310954782,1704834643307,-205.0,0.00035437,2]
[310954783,1704834643319,-333.4011,0.00035498,4]
[310954784,1704834643330,-150.56,0.00035616,2]
[310954785,1704834643342,-1000.0,0.00035625,2]
[310954786,1704834643355,-215.12,0.00035662,2]
[310954787,1704834643367,-333.4011,0.00035698,4]
[310954788,1704834643379,-333.4011,0.00035898,4]
[310954789,1704834643393,-100000.0,0.00036,2]
[310954790,1704834643405,-16599.9838455,0.00036,4]
[310954791,1704834643416,-333.4011,0.00036098,4]
[310954792,1704834643430,-543.38957345,0.00036233,2]
[310954793,1704834643441,-319.6,0.00036254,2]
[310954794,1704834643453,-333.4011,0.00036298,4]
[310954795,1704834643464,-153.31,0.000363,3]
[310954796,1704834643476,-153.31,0.000363,3]
[310954797,1704834643487,-153.31,0.000363,3]
[310954798,1704834643499,-153.31,0.000363,3]
[310954799,1704834643511,-153.31,0.000363,3]
[310954800,1704834643522,-153.31,0.000363,3]
[310954801,1704834643534,-153.31,0.000363,3]
[310954802,1704834643546,-157.74664031,0.000364,2]
[310954803,1704834643559,-940.66891002,0.00036458,8]
[310954804,1704834643570,-569.0066,0.0003648,2]
[310954805,1704834643582,-333.4011,0.00036498,4]
[310954806,1704834643594,-333.4011,0.00036698,4]
[310954807,1704834643605,-47654.7980678,0.00036781,7]
[310954808,1704834643616,-333.4011,0.00036898,4]
[310954809,1704834643628,-100000.0,0.00037,2]
[310954810,1704834643639,-28320.45284059,0.00037,7]
[310954811,1704834643651,-333.4011,0.00037098,4]
[310954812,1704834643662,-757.21003761,0.00037251,8]
[310954813,1704834643673,-227.95352191,0.00037251,8]
[310954814,1704834643688,-1132.63741537,0.00037251,8]
[310954815,1704834643700,-4500.61,0.00037297,2]
[310954816,1704834643712,-333.4011,0.00037298,4]
[310954817,1704834643725,-529.84081641,0.00037458,5]
[310954818,1704834643736,-1870.96594918,0.00037458,5]
[310954819,1704834643748,-920.95182656,0.00037458,5]
[310954820,1704834643760,-558.50577654,0.00037458,5]
[310954821,1704834643772,-1003.29784256,0.00037458,2]
[310954823,1704834643783,-17722.62916142,0.00037458,5]
[310954824,1704834643794,-4658.80098703,0.00037458,5]
[310954826,1704834643806,-14266.66349755,0.00037458,2]
[310954828,1704834643817,-6000.0,0.00037458,2]
[310954830,1704834643828,-924.8872282,0.00037458,5]
[310954832,1704834643840,-13959.65232039,0.00037458,2]
[310954838,1704834643852,-340.04808552,0.00037458,2]
[310954844,1704834643863,-200.0,0.00037458,2]
[310954847,1704834643874,-503.51383506,0.00037458,2]
[310954849,1704834643886,-597.87697109,0.00037458,2]
[310954851,1704834643898,-229.26698949,0.00037458,5]
[310954855,1704834643910,-205.00389414,0.00037458,2]
[310954857,1704834643922,-54668.99191454,0.00037458,2]
[310954860,1704834643936,-24463.92784037,0.00037458,5]
[310954862,1704834643948,-18580.45260558,0.00037458,5]
[310954864,1704834643959,-546.59520176,0.00037458,10]
[310954866,1704834643971,-330.43087819,0.00037458,5]
[310954869,1704834643983,-499.62646961,0.00037458,5]
[310954871,1704834643995,-1937.236888,0.00037458,30]
[310954873,1704834644007,-304.856372,0.00037458,30]
[310954875,1704834644018,-40588.0,0.00037458,4]
[310954877,1704834644029,-5531.39,0.00037458,5]
[310954878,1704834644040,-5531.39,0.00037458,5]
[310954879,1704834644052,-5531.39,0.00037458,5]
[310954880,1704834644063,-5531.39,0.00037458,5]
[310954881,1704834644075,-5531.39,0.00037458,5]
[310954882,1704834644086,-5531.39,0.00037458,5]
[310954883,1704834644097,-5531.39,0.00037458,5]
[310954884,1704834644109,-5531.39,0.00037458,5]
[310954885,1704834644120,-5531.39,0.00037458,5]
[310954886,1704834644132,-5531.39,0.00037458,5]
[310954887,1704834644143,-5531.39,0.00037458,5]
[310954888,1704834644155,-5531.39,0.00037458,5]
[310954889,1704834644166,-5531.39,0.00037458,5]
[310954890,1704834644181,-5531.39,0.00037458,5]
[310954891,1704834644193,-5531.39,0.00037458,5]
[310954892,1704834644204,-5531.39,0.00037458,5]
[310954893,1704834644215,-5531.39,0.00037458,5]
[310954894,1704834644225,-5531.39,0.00037458,5]
[310954895,1704834644236,-5531.39,0.00037458,5]
[310954896,1704834644247,-5531.39,0.00037458,5]
[310954897,1704834644258,-5531.39,0.00037458,5]
[310954898,1704834644269,-5531.39,0.00037458,5]
[310954899,1704834644281,-5531.39,0.00037458,5]
[310954900,1704834644292,-5531.59024284,0.00037458,5]
[310954901,1704834644303,-1965.399855,0.00037458,30]
[310954902,1704834644314,-189.665968,0.00037458,7]
[310954903,1704834644325,-151.0,0.00037458,7]
[310954904,1704834644337,-151.0,0.00037458,7]
[310954905,1704834644350,-205.0,0.00037484,6]
[310954909,1704834644362,-333.4011,0.00037498,4]
[310954913,1704834644374,-1000.0,0.000375,2]
[310954919,1704834644385,-333.4011,0.00037698,4]
[310954922,1704834644397,-15000.0,0.00037751,2]
[310954924,1704834644409,-200.0,0.0003789,7]
[310954926,1704834644421,-333.4011,0.00037898,4]
[310954927,1704834644434,-151.0,0.000379,7]
[310954929,1704834644446,-151.0,0.000379,7]
[310954931,1704834644458,-151.0,0.000379,7]
[310954933,1704834644469,-151.0,0.000379,7]
[310954935,1704834644480,-151.0,0.000379,7]
[310954936,1704834644492,-151.0,0.000379,7]
[310954937,1704834644503,-211.612124,0.000379,7]
[310954938,1704834644514,-211.612124,0.000379,7]
[310954939,1704834644525,-151.0,0.000379,7]
[310954940,1704834644537,-662824.751039,0.000379,3]
[310954941,1704834644550,-151.0,0.000379,7]
[310954942,1704834644561,-100000.0,0.00038,2]
[310954943,1704834644573,-152.33,0.00038028,2]
[310954944,1704834644584,-333.4011,0.00038098,6]
[310954945,1704834644596,-313.30158436,0.00038151,12]
[310954946,1704834644608,-2477.04529063,0.00038151,12]
[310954947,1704834644621,-6078.22573602,0.00038151,12]
[310954948,1704834644633,-168.54,0.00038228,2]
[310954949,1704834644645,-333.4011,0.00038298,6]
[310954950,1704834644656,-333.4011,0.00038498,6]
[310954951,1704834644667,-319.6,0.00038518,2]
[310954952,1704834644680,-333.4011,0.00038698,6]
[310954953,1704834644694,-333.4011,0.00038898,6]
[310954954,1704834644707,-652.7742482,0.00038973,2]
[310954955,1704834644718,-244.79378941,0.00038979,2]
[310954956,1704834644728,-100000.0,0.00039,2]
[310954957,1704834644736,-151.0,0.00039,7]
[310954958,1704834644746,-151.0,0.00039,7]
[310954959,1704834644755,-153.31,0.00039,3]
[310954960,1704834644765,-153.31,0.00039,3]
[310954961,1704834645320,-153.31,0.00039,3]
[310954962,1704834645355,-153.31,0.00039,3]
[310954963,1704834645382,-153.31,0.00039,3]
[310954964,1704834645414,-153.31,0.00039,3]
[310954965,1704834645438,-153.31,0.00039,3]
[310954966,1704834645448,-3000.0,0.0003909,2]
[310954967,1704834645457,-333.4011,0.00039098,8]
[310954968,1704834645467,-3000.0,0.000391,2]
[310954969,1704834645476,-5000.0,0.00039114,2]
[310954970,1704834645485,-3000.0,0.0003925,2]
[310954971,1704834645495,-199.8,0.0003926,2]
[310954972,1704834645504,-333.4011,0.00039298,8]
[310954973,1704834645513,-150.0,0.00039355,2]
[310954974,1704834645522,-1000.0,0.00039375,2]
[310954975,1704834645532,-3000.0,0.0003941,2]
[310954976,1704834645541,-3000.0,0.0003948,2]
[310954977,1704834645551,-205.0,0.00039531,11]
[310954978,1704834645561,-3000.0,0.0003956,2]
[310954979,1704834645570,-543.38957345,0.00039567,2]
[310954980,1704834645579,-500.0,0.00039725,10]
[310954981,1704834645589,-314.1254536,0.00039873,2]
[310954982,1704834645598,-57339.25,0.000399,5]
[310954983,1704834645607,-293.69,0.00039933,2]
[310954984,1704834645617,-300.0,0.00039933,2]
[310954985,1704834645626,-293.69,0.00039933,2]
[310954986,1704834645635,-293.69,0.00039933,2]
[310954987,1704834645644,-293.69,0.00039933,2]
[310954988,1704834645654,-293.69,0.00039933,2]
[310954989,1704834645663,-293.69,0.00039933,2]
[310954990,1704834645672,-293.69,0.00039933,2]
[310954991,1704834645684,-293.69,0.00039933,2]
[310954992,1704834645693,-293.69,0.00039933,2]
[310954993,1704834645702,-293.69,0.00039933,2]
[310954994,1704834645711,-561.0120073,0.0003997,2]
[310954995,1704834645721,-2699.8878607,0.00039973,2]
[310954996,1704834645730,-1986.9292429,0.00039973,2]
[310954997,1704834645740,-1273.9706251,0.00039973,2]
[310954998,1704834645749,-1511.7385868,0.00039973,2]
[310954999,1704834645759,-1112.5342091,0.00039973,2]
[310955000,1704834645768,-713.3298314,0.00039973,2]
[310955001,1704834645777,-3141.4965199,0.00039973,2]
[310955002,1704834645786,-2311.9224293,0.00039973,2]
[310955003,1704834645795,-1482.3483387,0.00039973,2]
[310955004,1704834645805,-599.27979208,0.00039988,4]
[310955005,1704834645814,-263.28142011,0.00039988,2]
[310955006,1704834645823,-696.21438607,0.00039989,4]
[310955007,1704834645833,-200.0,0.0003999,7]
[310955008,1704834645842,-200.0,0.0003999,7]
[310955009,1704834645851,-200.0,0.0003999,7]
[310955010,1704834645861,-200.0,0.0003999,7]
[310955011,1704834645870,-1136.0,0.0003999,3]
[310955012,1704834645879,-523.53043704,0.00039998,4]
[310955013,1704834645887,-788.46419341,0.00039998,4]
[310955014,1704834645897,-1174.57417902,0.00039998,4]
[310955015,1704834645905,-2889.99602098,0.00039998,4]
[310955016,1704834645915,-522.36940647,0.00039998,4]
[310955017,1704834645924,-593.01633068,0.00039998,4]
[310955018,1704834645934,-686.17088593,0.00039998,4]
[310955019,1704834645943,-12519.64299487,0.00039998,4]
[310955020,1704834645952,-1440.57893824,0.00039998,4]
[310955021,1704834645962,-2612.10639643,0.00039998,4]
[310955022,1704834645971,-257.52899999,0.00039998,4]
[310955023,1704834645980,-760.92227324,0.00039999,4]
[310955024,1704834645989,-100000.0,0.0004,3]
[310955025,1704834645999,-5150.0,0.0004,60]
[310955026,1704834646008,-5000.0,0.0004,61]
[310955027,1704834646017,-10000.0,0.0004,120]
[310955028,1704834646026,-5000.0,0.0004,3]
[310955029,1704834646035,-2048789.58919882,0.0004,7]
[310955030,1704834646051,-261.11521975,0.0004,7]
[310955031,1704834646062,-733.55110524,0.0004,7]
[310955048,1704834646746,-158.43501425,0.00022999,2]
[310955049,1704834646757,-293.69,0.00039933,2]
[310955050,1704834646767,-68.80366557,0.0004,7]
[310955051,1704834646791,-940.80852079,0.0004,7]
[310955052,1704834646808,-10410.55385374,0.0004,7]
[310955053,1704834647274,-399.61313833,0.00028999,2]
[310955054,1704834647285,-307.37208269,0.0004,7]
[310955055,1704834647301,-461.84811394,0.0004,7]
[310955056,1704834647466,-1129.3009947,0.0004,7]
[310955057,1704834647482,-379.80612017,0.0004,7]
[310955060,1704834654733,299.49740187,0.00020469,2]
[310955061,1704834676370,519.78453749,0.00020469,2]
[310955062,1704834680830,357.84158297,0.00020469,2]
[310955063,1704834684258,224.63428457,0.00020469,2]
[310955064,1704834684797,282.25366019,0.00020469,2]
[310955065,1704834690489,283.29816887,0.00020469,2]
[310955066,1704834926709,-527.25440195,0.00022799,2]
[310955067,1704834926736,-177.50358888,0.000228,2]
[310955068,1704834926761,-264.7427,0.000228,2]
[310955069,1704834926785,-24307.71385205,0.00022891,2]
[310955070,1704834926810,-7768.84462224,0.00022892,2]
[310955071,1704834926834,-6953.94083488,0.00022899,2]
[310955072,1704835025934,1566.49,0.00028,30]
[310955106,1704835626859,-1911.63202735,0.00022889,2]
[310955107,1704835626902,-196.37114886,0.00022889,2]
[310955108,1704835626935,-150.0,0.00022889,2]
[310955109,1704835626986,-150.0,0.00022889,2]
[310955110,1704835627021,-841.5854255,0.0002289,2]
[310955111,1704835627052,-5092.06427594,0.0002289,2]
[310955112,1704835627085,-2135.63150436,0.00022891,2]
[310955113,1704835627115,-472.39389102,0.00022892,2]
[310955114,1704835627143,-4333.4501915,0.00022892,2]
[310955115,1704835627171,-1264.12879631,0.00022893,2]
[310955116,1704835627207,-14258.97073662,0.00022895,2]
[310955117,1704835628041,-30421.47870308,0.00022895,2]
[310955118,1704835628081,-600.0,0.00022899,2]
[310955119,1704835628128,-3749.34878403,0.000229,2]
[310955120,1704835628167,-580.52688872,0.00022999,2]
[310955121,1704835628209,-1284.11,0.00022999,2]
[310955122,1704835628255,-155.0,0.00022999,2]
[310955123,1704835628292,-932.39338065,0.00023,2]
[310955124,1704835628334,-150.0,0.000231,2]
[310955125,1704835628367,-200.0,0.00025,2]
[310955126,1704835628412,-322.11967009,0.00025,2]
[310955127,1704835628452,-507.31091902,0.00025,2]
[310955128,1704835628488,-532.91052247,0.00025,2]
[310955129,1704835628523,-350.0,0.00025,3]
[310955130,1704835628563,-1581.25327792,0.00025,2]
[310955131,1704835628603,-1016.69878254,0.00025,2]
[310955132,1704835628645,-184.0,0.00025178,2]
[310955133,1704835628679,-184.0,0.00025178,2]
[310955134,1704835628718,-499.99,0.00025188,2]
[310955135,1704835628753,-861.62214882,0.00025363,2]
[310955136,1704835628781,-3185.21463735,0.0002563,2]
[310955137,1704835628818,-1000.0,0.00025897,2]
[310955138,1704835628852,-1136.09294,0.00026698,2]
[310955139,1704835628885,-430.68871395,0.00026698,2]
[310955140,1704835628924,-2895.90399733,0.00026699,2]
[310955141,1704835628956,-3416.0,0.000267,2]
[310955142,1704835628998,-36140.0,0.000267,2]
[310955143,1704835629037,-19091.64966794,0.000267,2]
[310955144,1704835629069,-400.0,0.00027,3]
[310955145,1704835629101,-500.0,0.000274,2]
[310955146,1704835629136,-2456.98234161,0.00028,2]
[310955147,1704835629174,-450.0,0.00029,3]
[310955148,1704835629209,-1040.00347398,0.00029,2]
[310955149,1704835629243,-3415.88538793,0.0003,3]
[310955150,1704835629274,-9620.12645151,0.0003,2]
[310955151,1704835629310,-677.34550316,0.0003,4]
[310955152,1704835629770,-500.0,0.00030052,2]
[310955153,1704835629805,-155.0,0.00030099,2]
[310955154,1704835629848,-690.39236906,0.00030099,2]
[310955155,1704835629883,-326.49483348,0.000301,4]
[310955156,1704835629917,-500.0,0.00031,3]
[310955157,1704835629950,-157.22,0.000311,2]
[310955158,1704835629982,-157.22,0.000311,2]
[310955159,1704835630021,-322.02,0.00031611,2]
[310955160,1704835630053,-337.35,0.00031623,2]
[310955161,1704835630085,-322.02,0.0003259,2]
[310955162,1704835630118,-10000.0,0.0003274,2]
[310955163,1704835630153,-550.0,0.00033,3]
[310955164,1704835630189,-161.82,0.00033176,15]
[310955165,1704835630233,-559.7997,0.000333,3]
[310955166,1704835630267,-5674.4978366,0.00033317,2]
[310955167,1704835642114,-152.7,0.000235,2]
[310955168,1704835642151,-153.84,0.00032587,2]
[310955169,1704835642182,-1738.01678795,0.00033317,2]
[310955181,1704835767100,-677.34550316,0.00032489,4]
[310955182,1704835767135,-2568.41155306,0.00032489,4]
[310955183,1704835767171,-18335.348,0.0003249,2]
[310955184,1704835767204,-9620.12645151,0.00033314,2]
[310955185,1704835767234,-2888.96679433,0.00033315,4]
[310955186,1704835767269,-2124.52455767,0.00033315,2]
[310955187,1704835767305,-155.0,0.00033315,2]
[310955188,1704835767340,-9328.85232966,0.00033317,2]
[310955198,1704835792468,287.12361732,0.0003,120]
[310955433,1704835892203,-1252.73582813,0.00031731,2]
[310955442,1704835892246,-1397.31752742,0.00031731,2]
[310955447,1704835892264,-368.35,0.00031732,2]
[310955452,1704835892298,-2407.47232861,0.00033214,4]
[310955457,1704835892329,-155.0,0.00033215,2]
[310955458,1704835892353,-9620.12645151,0.00033215,2]
[310955463,1704835892378,-1005.5232,0.00033217,2]
[310955468,1704835892398,-500.0,0.00033317,2]
[310955472,1704835892427,-500.0,0.00033317,2]
[310955474,1704835892439,-500.0,0.00033317,2]
[310955478,1704835892473,-500.0,0.00033317,2]
[310955482,1704835892498,-500.0,0.00033317,2]
[310955484,1704835892511,-500.0,0.00033317,2]
[310955487,1704835892547,-500.0,0.00033317,2]
[310955490,1704835892564,-500.0,0.00033317,2]
[310955493,1704835892579,-7158.63304579,0.00033317,2]
[310955497,1704835892605,-196.8,0.0003334,2]
[310955500,1704835892632,-167.05182833,0.00033398,4]
[310955503,1704835892663,-928.57802693,0.00033398,4]
[310955505,1704835892680,-302.84681763,0.00033398,4]
[310955507,1704835892710,-413.63665752,0.00033398,4]
[310955508,1704835892730,-167.25,0.0003341,2]
[310955511,1704835892753,-150.0,0.00033432,2]
[310955513,1704835892781,-514.40879808,0.00033499,2]
[310955515,1704835892805,-885.93,0.000335,2]
[310955517,1704835892824,-885.93,0.000335,2]
[310955519,1704835892847,-885.93,0.000335,2]
[310955521,1704835892863,-885.93,0.000335,2]
[310955523,1704835892882,-885.93,0.000335,2]
[310955524,1704835892908,-885.93,0.000335,2]
[310955526,1704835892943,-885.93,0.000335,2]
[310955528,1704835892969,-885.93,0.000335,2]
[310955530,1704835892990,-885.93,0.000335,2]
[310955533,1704835893026,-885.93,0.000335,2]
[310955535,1704835893050,-885.93,0.000335,2]
[310955537,1704835893080,-885.93,0.000335,2]
[310955539,1704835893100,-885.93,0.000335,2]
[310955541,1704835893117,-885.93,0.000335,2]
[310955543,1704835893140,-885.93,0.000335,2]
[310955545,1704835893163,-885.93,0.000335,2]
[310955546,1704835893181,-885.93,0.000335,2]
[310955549,1704835893223,-885.93,0.000335,2]
[310955551,1704835893244,-885.93,0.000335,2]
[310955553,1704835893271,-885.93,0.000335,2]
[310955554,1704835893288,-5743.76,0.00033517,2]
[310955557,1704835893316,-250.0,0.00033545,2]
[310955558,1704835893335,-322.02,0.00033568,2]
[310955560,1704835893354,-163.89,0.00033614,2]
[310955562,1704835893372,-250.0,0.00033686,111]
[310955564,1704835893405,-499.99,0.00033686,2]
[310955566,1704835893427,-163.89,0.00033832,2]
[310955568,1704835893454,-368.35,0.00033996,2]
[310955601,1704835893910,-1070.87599147,0.00033998,4]
[310955607,1704835893974,-1000.0,0.0003405,4]
[310955610,1704835893997,-163.89,0.00034051,2]
[310955612,1704835894016,-163.89,0.00034269,2]
[310955614,1704835894045,-163.89,0.00034488,2]
[310955616,1704835894067,-157.22,0.000345,2]
[310955618,1704835894085,-157.22,0.000345,2]
[310955620,1704835894101,-157.22,0.000345,2]
[310955621,1704835894131,-157.22,0.000345,2]
[310955623,1704835894150,-1870.599889,0.0003452,2]
[310955625,1704835894170,-14737.212589,0.0003452,2]
[310955627,1704835894193,-215.1,0.00034521,2]
[310955629,1704835894213,-322.02,0.00034547,2]
[310955631,1704835894226,-163.89,0.00034706,2]
[310955633,1704835894247,-2805.899834,0.00034794,2]
[310955634,1704835894265,-15526.68781718,0.00034794,2]
[310955659,1704835894820,-537.64047798,0.00034794,2]
[310955661,1704835894851,-4607.82526999,0.00034794,2]
[310955663,1704835894886,-1433.66531885,0.00034794,2]
[310955665,1704835894912,-163.89,0.00034925,2]
[310955668,1704835894943,-1691.10244548,0.00034931,2]
[310955670,1704835894988,-2050.09733252,0.00034931,2]
[310955673,1704835895000,-6913.40266748,0.00034931,2]
[310955699,1704835895717,-22561.02251152,0.00034931,2]
[310955700,1704835895738,-165.06,0.00034938,2]
[310955701,1704835895770,-390.97493293,0.00034998,4]
[310955702,1704835895796,-839.32942768,0.00034998,4]
[310955703,1704835895845,-189.89374987,0.00034998,2]
[310955704,1704835895874,-1250.39470875,0.00034998,4]
[310955705,1704835895896,-2104.08136828,0.00034998,2]
[310955706,1704835895941,-278.40034458,0.00034998,4]
[310955707,1704835895953,-873.24820502,0.00034999,4]
[310955708,1704835895984,-912.74277067,0.00034999,4]
[310955709,1704835896007,-23197.8681048,0.00034999,4]
[310955710,1704835896038,-1887.71474569,0.00035,2]
[310955711,1704835896062,-11350.07478341,0.00035,2]
[310955712,1704835896084,-19733.08009773,0.00035,2]
[310955713,1704835896112,-67029.13037317,0.00035,2]
[310955714,1704835896143,-600.0,0.00035,3]
[310955715,1704835896174,-119667.44635674,0.00035,4]
[310955716,1704835896489,-6062.05745717,0.00035,4]
[310955717,1704835896529,-155.33912068,0.00035,3]
[310955718,1704835896551,-1345.27630067,0.00035,14]
[310955719,1704835896613,-544.12920872,0.00035,14]
[310955720,1704835896640,-5000.0,0.00035,2]
[310955721,1704835896652,-11503.57758026,0.00035,7]
[310955722,1704835896676,-194.15574383,0.00035,4]
[310955723,1704835896718,-16462.58633023,0.00035,2]
[310955724,1704835896735,-446.78845482,0.00035,4]
[310955725,1704835896756,-385.67307171,0.00035,2]
[310955726,1704835896776,-617.90544107,0.00035,4]
[310955727,1704835896792,-702.29490981,0.00035,2]
[310955728,1704835896812,-400.0,0.00035,3]
[310955729,1704835896827,-156.14755448,0.00035,4]
[310955730,1704835896852,-206.62319823,0.00035066,4]
[310955731,1704835896891,-650.0,0.00035066,2]
[310955732,1704835896914,-307.05969727,0.00035067,4]
[310955733,1704835896941,-4676.499723,0.00035068,2]
[310955734,1704835896984,-36843.031474,0.00035068,2]
[310955735,1704835897008,-189.55,0.00035142,2]
[310955736,1704835897027,-163.89,0.00035143,2]
[310955737,1704835897039,-189.55,0.00035327,2]
[310955738,1704835897066,-151.54,0.00035333,2]
[310955740,1704835897090,-6547.099612,0.00035342,2]
[310955742,1704835897118,-51580.244064,0.00035342,2]
[310955744,1704835897139,-163.89,0.00035362,2]
[310955746,1704835897163,-189.55,0.00035512,2]
[310955748,1704835897188,-322.02,0.00035525,2]
[310955750,1704835897215,-150.57,0.00035616,2]
[310955752,1704835897241,-189.55,0.00035696,2]
[310955754,1704835897264,-156.82,0.00035717,2]
[310955756,1704835897278,-189.55,0.00035881,2]
[310955758,1704835897307,-190.3679819,0.00035998,4]
[310955760,1704835897330,-64087.35891306,0.00036,2]
[310955761,1704835897361,-2623.97160755,0.00036,2]
[310955763,1704835897378,-5938.60045272,0.00036,2]
[310955764,1704835897418,-464.9532,0.00036,2]
[310955766,1704835897434,-916.6,0.00036,2]
[310955768,1704835897470,-934.87736252,0.00036,2]
[310955789,1704835898064,-625.78784407,0.00036,2]
[310955791,1704835898080,-517.07743492,0.00036,2]
[310955793,1704835898102,-14279.84036721,0.00036,2]
[310955794,1704835898122,-2021.52157094,0.00036,2]
[310955795,1704835898143,-7589.41124701,0.00036,2]
[310955796,1704835898167,-5305.8572,0.00036035,2]
[310955797,1704835898182,-189.55,0.00036066,2]
[310955798,1704835898198,-155.4439,0.00036101,2]
[310955799,1704835898220,-155.19605017,0.00036105,4]
[310955800,1704835898246,-155.0,0.00036105,4]
[310955801,1704835898272,-202.84578995,0.00036105,4]
[310955802,1704835898287,-41053.57047115,0.00036105,4]
[310955803,1704835898310,-572.43746328,0.00036106,4]
[310955804,1704835898338,-1000.0,0.0003612,2]
[310955805,1704835898366,-10290.17,0.00036132,2]
[310955806,1704835898376,-386.33549374,0.00036134,2]
[310955807,1704835898418,-189.55,0.00036251,2]
[310955808,1704835898429,-368.35,0.0003626,2]
[310955809,1704835898446,-203.79356903,0.00036299,4]
[310955810,1704835898482,-885.93,0.000363,3]
[310955811,1704835898501,-885.93,0.000363,3]
[310955813,1704835898522,-885.93,0.000363,3]
[310955815,1704835898547,-885.93,0.000363,3]
[310955816,1704835898557,-885.93,0.000363,3]
[310955818,1704835898584,-885.93,0.000363,3]
[310955820,1704835898619,-885.93,0.000363,3]
[310955822,1704835898638,-885.93,0.000363,3]
[310955823,1704835898654,-885.93,0.000363,3]
[310955824,1704835898680,-885.93,0.000363,3]
[310955825,1704835898696,-885.93,0.000363,3]
[310955826,1704835898727,-885.93,0.000363,3]
[310955827,1704835898739,-885.93,0.000363,3]
[310955828,1704835898755,-885.93,0.000363,3]
[310955829,1704835898774,-885.93,0.000363,3]
[310955830,1704835898891,-885.93,0.000363,3]
[310955831,1704835898919,-885.93,0.000363,3]
[310955832,1704835898942,-885.93,0.000363,3]
[310955833,1704835898961,-885.93,0.000363,3]
[310955834,1704835898977,-885.93,0.000363,3]
[310955835,1704835898993,-167.12,0.00036386,2]
[310955836,1704835899014,-156.82,0.00036389,2]
[310955837,1704835899038,-995.58203748,0.00036432,8]
[310955838,1704835899048,-189.55,0.00036436,2]
[310955839,1704835899065,-322.02,0.00036504,2]
[310955840,1704835899074,-189.55,0.00036621,2]
[310955841,1704835899089,-370.02848397,0.00036742,2]
[310955842,1704835899114,-189.55,0.00036806,2]
[310955843,1704835899128,-189.55,0.00036991,2]
[310955844,1704835899150,-100000.0,0.00037,2]
[310955845,1704835899161,-650.0,0.00037,3]
[310955846,1704835899181,-844.311,0.00037003,2]
[310955847,1704835899195,-403.0,0.00037003,2]
[310955848,1704835899211,-944.0,0.00037003,2]
[310955849,1704835899230,-332.868,0.00037003,2]
[310955850,1704835899244,-427.532,0.00037003,2]
[310955851,1704835899265,-1849.0,0.00037003,2]
[310955852,1704835899293,-822.777,0.00037003,2]
[310955853,1704835899310,-1234.0,0.00037003,2]
[310955854,1704835899325,-1339.266,0.00037003,2]
[310955855,1704835899346,-156.82,0.00037061,2]
[310955856,1704835899363,-151.54,0.00037099,2]
[310955857,1704835899389,-1401.7839,0.00037151,2]
[310955858,1704835899406,-189.55,0.00037176,2]